bitfinex-derivatives/quotes_ETHF0:USTF0_20250224
["timestamp","ask_amount","ask_price","bid_price","bid_amount"]
[1740440622362,0.00594471,2522.6,2522.5,0.793]
[1740440622554,5.03,2523.5,2522.3,3.2078]
[1740440622753,5.03,2523.5,2523.4,0.79272]
[1740440623363,5.03,2523.5,2523.4,40.8]
[1740440623559,5.82269,2523.5,2523.4,40.8]
[1740440623768,0.79276,2523.3,2522.6,0.79295]
[1740440623966,4.00056,2523.3,2523.2,0.00594471]
[1740440624266,4.00055,2523.3,2523.2,0.00594471]
[1740440624764,9.2078,2523.3,2521.5,3.2078]
[1740440624965,3.2078,2522.4,2521.5,3.2078]
[1740440625166,5.82309,2522.3,2521.6,0.79326]
[1740440625363,0.79313,2522.1,2521.5,4.0011]
[1740440625666,0.79311,2522.2,2521.6,0.79328]
[1740440625858,0.00594471,2522.1,2521.8,0.79321]
[1740440626059,0.00594471,2522.1,2521.5,3.2078]
[1740440626272,4.00688471,2522.1,2521.5,3.2078]
[1740440626462,4.00688471,2522.1,2521.1,2.33351923]
[1740440626463,3.2078,2521.8,2521.1,3.2078]
[1740440626765,3.2078,2521.2,2520.3,3.2078]
[1740440626968,3.2078,2520.8,2520.4,41.16194135]
[1740440627164,3.2078,2520.8,2520.4,0.36194135]
[1740440627368,3.2078,2520.5,2519.7,4.7474]
[1740440627564,1.98338,2521.4,2518.8,9.69964]
[1740440627565,3.2078,2520.0,2518.9,3.2078]
[1740440627863,1.9839,2520.8,2518.9,3.2078]
[1740440627864,3.2052737,2519.7,2519.2,0.79402]
[1740440628161,5.03,2519.6,2519.0,40.8]
[1740440628366,5.03,2519.6,2519.2,0.79402]
[1740440628557,5.03,2519.6,2519.0,40.8]
[1740440629269,5.03,2519.6,2519.4,0.79396]
[1740440629462,3.2078,2520.5,2519.4,3.2078]
[1740440629658,4.5392,2521.9,2519.4,3.2078]
[1740440629659,3.2078,2521.7,2520.3,3.2078]
[1740440629864,3.2078,2522.0,2521.9,0.79319]
[1740440630069,8.2378,2522.9,2522.6,0.79295]
[1740440630363,6.52063,2523.9,2522.6,3.2078]
[1740440630364,8.2378,2523.5,2522.6,3.2078]
[1740440630566,8.2378,2523.5,2522.7,40.8]
[1740440630768,0.00594471,2523.0,2522.9,0.79288]
[1740440631364,0.00594471,2523.0,2522.8,0.79289]
[1740440631564,0.00594471,2523.0,2522.7,40.8]
[1740440631565,0.00594471,2523.0,2522.9,0.79288]
[1740440632464,3.2078,2523.6,2522.9,6.0]
[1740440632766,3.2078,2523.6,2523.5,0.79269]
[1740440633367,3.2078,2523.7,2522.9,3.2078]
[1740440633573,3.2078,2523.8,2523.4,0.79269]
[1740440633765,0.00594471,2523.6,2523.5,0.79267]
[1740440633970,0.00594471,2523.6,2523.5,0.79269]
[1740440634370,0.00594471,2523.6,2523.2,3.2078]
[1740440634766,3.2078,2523.5,2522.8,0.79288]
[1740440635067,3.2078,2523.5,2522.6,8.9814]
[1740440635465,3.2078,2523.5,2522.9,0.79285]
[1740440635969,4.00051,2523.5,2522.8,0.79289]
[1740440636162,4.0005,2523.5,2522.8,0.79289]
[1740440636564,3.2078,2523.5,2522.8,0.79289]
[1740440636764,0.00594471,2523.6,2523.1,3.2078]
[1740440637169,0.00594471,2523.6,2523.2,0.79277]
[1740440638271,3.2078,2523.5,2523.0,0.79283]
[1740440638468,3.2078,2523.5,2523.1,0.79281]
[1740440638866,5.03394471,2523.6,2523.2,0.79276]
[1740440639469,0.00594471,2523.6,2523.5,0.79269]
[1740440639668,3.2078,2524.2,2523.5,4.00049]
[1740440639870,3.2078,2524.6,2524.3,0.79242]
[1740440640269,3.2078,2524.6,2524.3,0.79241]
[1740440640475,3.2078,2524.6,2524.4,0.7924]
[1740440640675,3.2078,2524.6,2523.9,42.78141]
[1740440640874,3.2078,2524.6,2524.3,0.79243]
[1740440641080,3.2078,2524.6,2524.3,0.79242]
[1740440641278,3.2078,2524.6,2524.2,0.00594471]
[1740440641677,3.2078,2524.6,2524.2,0.79839471]
[1740440641872,3.2078,2525.6,2525.2,0.79213]
[1740440642180,3.2078,2525.6,2525.0,3.2078]
[1740440642473,3.2078,2525.6,2525.3,0.79212]
[1740440642776,5.81895,2525.9,2525.3,0.79212]
[1740440642974,3.2078,2526.0,2525.3,3.2078]
[1740440643177,0.00594471,2525.9,2525.3,5.18811]
[1740440643373,0.00594471,2525.9,2524.7,9.52492]
[1740440643374,0.00594471,2525.9,2525.6,3.2078]
[1740440643577,0.00594471,2525.9,2525.8,0.79197]
[1740440644382,3.2078,2526.9,2525.9,1.97984]
[1740440644582,3.2078,2526.9,2526.4,0.79175]
[1740440644779,3.2078,2526.9,2526.5,0.79173]
[1740440645475,3.99932,2527.3,2526.3,3.2078]
[1740440645685,0.00594471,2527.0,2526.7,0.79167]
[1740440646474,3.21374471,2527.0,2525.9,3.2078]
[1740440646674,3.2078,2526.7,2526.1,0.79185]
[1740440646877,3.2078,2526.3,2525.5,0.00594471]
[1740440647074,5.023,2526.9,2524.8,3.2078]
[1740440647075,3.2078,2525.7,2524.8,3.2078]
[1740440647278,3.2078,2525.3,2524.3,5.9674]
[1740440647471,3.2078,2525.0,2524.1,3.2078]
[1740440647677,3.2078,2524.7,2524.2,0.79246]
[1740440647884,5.023,2524.9,2524.1,3.2078]
[1740440648480,0.00594471,2524.8,2524.2,0.00594471]
[1740440648782,0.00594471,2524.8,2524.7,0.79231]
[1740440649575,5.023,2526.0,2525.6,0.79203]
[1740440649775,8.2308,2526.5,2525.5,1.9801]
[1740440649977,8.2308,2526.5,2526.3,0.79178]
[1740440649978,3.2078,2526.5,2526.3,0.79178]
[1740440650180,5.47173,2526.9,2526.3,0.79178]
[1740440650181,8.67953,2526.9,2526.3,0.79178]
[1740440650581,8.67953,2526.9,2526.1,3.2078]
[1740440650785,3.2078,2526.9,2526.1,3.2078]
[1740440651082,3.21374471,2526.9,2526.3,0.00594471]
[1740440651290,0.00594471,2526.9,2526.6,0.7917]
[1740440651482,0.00594471,2526.9,2526.7,0.79167]
[1740440651678,0.00594471,2526.9,2526.8,0.79165]
[1740440651885,0.00594471,2526.9,2526.8,3.99945]
[1740440652281,5.021,2527.7,2526.8,3.99945]
[1740440652486,5.021,2527.7,2527.3,0.79148]
[1740440652988,5.021,2527.7,2526.3,0.00594471]
[1740440652989,3.2078,2527.4,2526.3,0.00594471]
[1740440653292,0.79178,2526.4,2526.3,0.00594471]
[1740440654093,5.021,2526.5,2526.3,0.00594471]
[1740440655489,3.2078,2526.6,2526.3,0.00594471]
[1740440655787,0.79211,2525.4,2525.1,3.2078]
[1740440655987,5.019,2525.3,2524.3,4.00022]
[1740440656197,3.2078,2525.1,2524.3,3.2078]
[1740440656693,4.00012,2524.7,2524.3,3.2078]
[1740440656902,5.019,2524.6,2524.4,0.00594471]
[1740440657194,0.79237,2524.5,2524.4,0.00594471]
[1740440657698,5.019,2524.6,2524.4,0.00594471]
[1740440658000,0.79237,2524.5,2524.4,0.00594471]
[1740440658498,5.81135,2524.6,2524.4,0.00594471]
[1740440659001,5.019,2524.6,2524.4,0.00594471]
[1740440659200,0.79237,2524.5,2524.4,0.00594471]
[1740440659495,5.019,2524.6,2524.4,0.00594471]
[1740440659692,5.02394471,2525.0,2524.4,0.00594471]
[1740440659895,0.00594471,2525.0,2524.9,0.79225]
[1740440660799,5.019,2525.8,2524.9,6.0]
[1740440660996,5.019,2525.8,2524.6,3.2078]
[1740440660997,8.2268,2525.8,2524.6,3.2078]
[1740440661202,0.79204,2525.6,2524.9,0.79224]
[1740440661402,9.01879,2525.8,2524.6,3.2078]
[1740440661702,9.01879,2525.8,2525.3,0.79211]
[1740440661703,8.2268,2525.8,2525.3,0.79211]
[1740440661898,0.00392318,2525.5,2525.4,0.79207]
[1740440662698,0.00392318,2525.5,2525.3,3.2078]
[1740440662904,0.00392318,2525.5,2525.3,3.99991]
[1740440663097,0.00392318,2525.5,2525.3,3.2078]
[1740440663395,0.00392318,2525.5,2525.3,3.99991]
[1740440663602,5.018,2526.3,2525.5,1.98016]
[1740440663797,5.018,2526.4,2525.9,0.79192]
[1740440664001,8.7987,2526.9,2525.7,3.2078]
[1740440664200,5.017,2526.6,2526.0,0.79189]
[1740440664394,5.017,2526.6,2525.4,42.78023]
[1740440664395,5.017,2526.6,2525.9,3.2078]
[1740440664591,5.017,2526.6,2526.0,3.2078]
[1740440664803,5.017,2526.6,2526.4,0.79177]
[1740440664993,3.2078,2526.9,2526.3,0.79179]
[1740440665197,8.2248,2526.9,2526.4,0.79178]
[1740440665900,6.0447,2527.1,2526.3,3.2078]
[1740440666104,11.0617,2527.1,2526.6,0.79169]
[1740440666301,5.017,2527.1,2526.4,1.97945]
[1740440666501,3.2078,2527.2,2526.6,3.2078]
[1740440666698,3.2078,2527.2,2526.8,0.79164]
[1740440666896,5.016,2527.4,2527.0,0.79157]
[1740440667497,3.2078,2527.6,2526.6,3.2078]
[1740440667696,3.2078,2527.6,2527.1,3.2078]
[1740440667896,7.9828,2528.1,2527.6,0.79138]
[1740440668103,5.015,2528.0,2527.6,0.79139]
[1740440668303,3.2078,2528.1,2527.6,0.00594471]
[1740440668505,3.2078,2528.1,2527.6,0.79732471]
[1740440668706,3.2078,2528.1,2527.7,0.79136]
[1740440669106,8.2228,2528.5,2527.8,40.8]
[1740440669608,10.9675,2528.6,2527.8,40.8]
[1740440669807,10.9675,2528.6,2527.9,3.2078]
[1740440670014,10.9675,2528.6,2528.3,0.79116]
[1740440670209,10.9675,2528.6,2527.9,3.2078]
[1740440670605,10.9675,2528.6,2528.1,0.79121]
[1740440670806,0.79113,2528.5,2527.9,0.79129]
[1740440671010,3.2078,2528.3,2527.6,3.21374471]
[1740440671514,3.2078,2528.3,2527.6,4.00514471]
[1740440671706,3.2078,2528.3,2527.6,3.21374471]
[1740440671907,3.2078,2528.9,2528.7,0.79105]
[1740440672212,9.01168,2529.3,2528.6,0.79107]
[1740440672409,9.01168,2529.3,2528.6,0.79106]
[1740440672616,9.01168,2529.3,2528.7,40.8]
[1740440672907,3.2078,2530.1,2529.0,3.2078]
[1740440673109,3.2078,2530.1,2529.7,3.2078]
[1740440673302,3.2078,2531.2,2530.0,3.2078]
[1740440673506,3.2078,2531.2,2530.7,0.79042]
[1740440673807,0.79032,2531.1,2530.4,0.7905]
[1740440674007,3.99817,2530.9,2530.8,40.8]
[1740440674214,9.00917,2530.9,2530.8,40.8]
[1740440674408,15.00917,2530.9,2530.8,40.8]
[1740440674605,0.79074,2529.7,2529.6,0.00593249]
[1740440674808,8.2188,2529.7,2528.5,3.2078]
[1740440675107,3.2078,2529.0,2528.0,3.2078]
[1740440675309,5.011,2528.9,2528.0,3.2078]
[1740440675912,0.7911,2528.6,2528.2,0.00593249]
[1740440676115,0.79115,2528.5,2528.2,0.00593249]
[1740440676414,3.2078,2528.6,2528.2,0.00593249]
[1740440677011,0.00589174,2528.7,2528.6,0.79109]
[1740440677414,0.00589174,2528.7,2528.6,47.59109]
[1740440677611,5.008,2529.9,2528.7,1.97765]
[1740440677914,3.2078,2530.0,2529.2,1.97726]
[1740440678107,3.2078,2530.4,2529.6,3.2078]
[1740440678308,5.008,2530.6,2529.6,3.2078]
[1740440678508,5.008,2530.6,2530.1,0.79059]
[1740440678708,5.008,2530.6,2530.0,0.79065]
[1740440678911,5.79848,2530.6,2529.9,3.99847]
[1740440679112,0.79049,2530.5,2529.8,0.79664249]
[1740440679321,3.2078,2530.4,2529.8,3.21373249]
[1740440679517,0.79049,2530.5,2529.9,0.79068]
[1740440679920,5.008,2530.6,2529.8,3.21373249]
[1740440680121,5.008,2530.6,2530.0,0.79064]
[1740440680324,5.008,2530.6,2530.1,0.79061]
[1740440680619,5.007,2530.7,2530.3,0.79054]
[1740440681118,5.007,2530.7,2529.9,1.97671]
[1740440681119,5.007,2530.7,2530.2,3.2078]
[1740440681419,5.007,2530.7,2529.9,1.97671]
[1740440681420,5.007,2530.7,2530.5,3.2078]
[1740440682517,3.2078,2531.1,2530.8,0.79038]
[1740440682821,3.2078,2531.1,2530.8,0.79039]
[1740440683017,3.2078,2531.1,2530.9,40.8]
[1740440684021,3.2078,2531.1,2530.5,3.2078]
[1740440684218,0.79048,2530.6,2529.9,0.79067]
[1740440684422,0.79049,2530.6,2529.8,3.21373249]
[1740440684618,0.79047,2530.6,2529.8,44.01373249]
[1740440684822,5.004,2530.5,2529.9,0.79065]
[1740440685019,0.79057,2530.3,2529.8,3.21373249]
[1740440685317,8.2118,2530.5,2529.8,3.21373249]
[1740440685817,0.79054,2530.4,2529.8,4.00444249]
[1740440686018,0.79054,2530.4,2529.8,3.21373249]
[1740440686222,3.2078,2530.2,2529.8,0.00593249]
[1740440686523,5.004,2530.5,2528.9,3.2078]
[1740440686524,0.79088,2529.3,2528.9,3.2078]
[1740440687025,3.2078,2529.1,2528.3,3.2078]
[1740440687225,0.79101,2528.9,2528.3,3.2078]
[1740440687615,6.98014,2529.4,2528.3,3.2078]
[1740440687616,3.2078,2528.8,2528.4,40.8]
[1740440687919,5.003,2528.7,2528.4,40.8]
[1740440688121,5.003,2528.6,2528.4,40.8]
[1740440689623,0.00593249,2528.9,2528.8,0.79103]
[1740440689832,21.932,2530.6,2528.5,1.97781]
[1740440689833,5.002,2529.8,2528.7,3.2078]
[1740440690017,9.1257,2530.8,2529.5,3.2078]
[1740440690216,4.8126,2531.3,2530.2,3.2078]
[1740440690217,13.0224,2531.3,2530.2,3.2078]
[1740440690418,13.0224,2531.3,2530.5,3.2078]
[1740440690721,3.2078,2530.6,2529.2,5.1201218]
[1740440691026,3.2078,2529.4,2528.6,5.683]
[1740440691324,5.003,2529.3,2528.7,0.00593249]
[1740440691520,0.79098,2529.0,2528.7,0.00593249]
[1740440691727,5.003,2529.3,2528.7,0.00593249]
[1740440691921,8.2108,2529.3,2528.7,0.00593249]
[1740440692220,0.79103,2528.8,2528.7,0.00593249]
[1740440692414,0.79098,2529.0,2528.7,0.00593249]
[1740440692721,8.2098,2529.2,2528.7,0.00593249]
[1740440693027,8.2098,2529.2,2528.7,0.79697249]
[1740440693326,8.2098,2529.2,2528.7,0.00593249]
[1740440694224,3.2078,2529.2,2528.7,0.00593249]
[1740440694526,5.002,2529.7,2529.1,3.2078]
[1740440694722,5.002,2529.7,2529.4,0.79082]
[1740440694919,5.002,2529.7,2529.5,0.79081]
[1740440695220,5.002,2529.8,2529.4,0.79082]
[1740440695420,5.002,2529.8,2529.0,3.2078]
[1740440695724,5.002,2529.8,2529.4,0.79083]
[1740440696120,0.7906,2530.2,2529.4,3.2078]
[1740440696326,5.002,2530.1,2529.3,3.2078]
[1740440696521,10.4618,2530.7,2530.0,3.2078]
[1740440696827,0.7905,2530.5,2530.0,3.99843]
[1740440697127,5.4598,2530.7,2530.1,0.00593249]
[1740440697335,5.79248,2530.6,2530.1,0.00593249]
[1740440697527,7.9583,2531.0,2530.1,0.00593249]
[1740440697528,3.2078,2531.0,2530.1,0.00593249]
[1740440697726,5.001,2531.0,2530.7,0.79041]
[1740440698026,5.001,2531.0,2530.3,3.2078]
[1740440698229,5.001,2531.0,2530.6,0.79044]
[1740440698628,5.001,2531.0,2530.3,3.2078]
[1740440698825,0.79059,2530.2,2530.1,0.00593249]
[1740440699023,8.99939,2530.2,2530.1,0.00593249]
[1740440699325,0.79067,2530.0,2529.6,3.2078]
[1740440699529,5.001,2530.2,2529.6,3.2078]
[1740440699728,0.79064,2530.1,2529.6,3.2078]
[1740440699931,5.001,2530.2,2529.6,3.2078]
[1740440700425,5.00693249,2530.2,2529.9,3.2078]
[1740440700623,0.00593249,2530.2,2529.9,3.2078]
[1740440701329,0.79652249,2530.2,2529.9,40.8]
[1740440701524,0.79652249,2530.2,2529.6,4.00449249]
[1740440701729,0.00593249,2530.2,2529.6,3.21373249]
[1740440701926,0.00593249,2530.2,2529.7,41.59074]
[1740440702524,0.00593249,2530.2,2529.7,0.79074]
[1740440702820,0.00593249,2530.2,2529.6,3.21373249]
[1740440703027,0.79653249,2530.2,2529.7,40.8]
[1740440703326,0.00593249,2530.2,2529.7,41.59074]
[1740440703519,4.999,2530.1,2529.7,41.59074]
[1740440703828,4.999,2530.1,2529.7,40.8]
[1740440704229,5.002236,2530.1,2529.7,40.8]
[1740440704722,8.210036,2530.1,2529.7,40.8]
[1740440704928,0.79071,2529.8,2529.6,0.00593249]
[1740440705223,8.210036,2530.1,2529.6,0.00593249]
[1740440705430,3.2078,2529.9,2529.6,0.00593249]
[1740440706031,3.99848,2529.9,2529.6,0.00593249]
[1740440706424,3.99849,2529.9,2529.6,0.00593249]
[1740440706631,3.2078,2529.9,2529.6,0.00593249]
[1740440706832,3.9985,2529.9,2529.6,0.00593249]
[1740440707230,3.2078,2529.9,2529.6,0.00593249]
[1740440707436,3.99849,2529.9,2529.6,0.00593249]
[1740440707730,3.2078,2529.9,2529.6,0.00593249]
[1740440707930,3.9985,2529.9,2529.6,0.00593249]
[1740440708433,3.99849,2529.9,2529.6,0.00593249]
[1740440708724,3.2078,2529.9,2529.6,0.00593249]
[1740440709233,3.99851,2529.9,2529.6,0.00593249]
[1740440709832,0.79071,2529.8,2529.6,0.00593249]
[1740440710030,0.79074,2529.7,2529.6,0.00593249]
[1740440710231,0.79091,2529.2,2528.6,0.79107]
[1740440710431,4.997,2529.1,2528.7,0.79105]
[1740440710633,4.997,2529.3,2528.9,3.2078]
[1740440710831,8.9312,2529.8,2528.9,5.18527]
[1740440711040,13.9282,2529.8,2529.2,3.2078]
[1740440711329,0.79079,2529.6,2529.2,3.21373249]
[1740440711534,13.9282,2529.8,2529.2,3.21373249]
[1740440711738,0.79087,2529.3,2529.2,3.21373249]
[1740440712633,0.79087,2529.3,2529.2,0.00593249]
[1740440715136,0.76995419,2529.4,2529.2,0.00593249]
[1740440715539,3.2078,2529.5,2529.2,0.00593249]
[1740440715742,9.2078,2529.5,2529.2,0.00593249]
[1740440715941,0.76995419,2529.4,2529.2,0.00593249]
[1740440716130,3.2078,2529.5,2529.2,0.00593249]
[1740440716329,4.996,2529.4,2529.3,40.8]
[1740440716733,10.996,2529.4,2529.2,0.00593249]
[1740440716930,4.996,2529.4,2529.2,0.00593249]
[1740440717134,10.996,2529.4,2529.2,0.00593249]
[1740440718841,4.996,2529.4,2529.2,0.00593249]
[1740440719441,4.996,2529.4,2528.3,3.2078]
[1740440719641,3.2078,2529.2,2528.3,3.2078]
[1740440719939,3.2078,2529.2,2528.4,40.8]
[1740440720742,3.2078,2529.2,2528.5,0.00593249]
[1740440727045,3.2078,2529.5,2528.5,0.00593249]
[1740440727247,4.994,2529.4,2528.5,0.00593249]
[1740440728044,4.994,2529.4,2528.6,3.2078]
[1740440729043,4.993,2529.5,2529.2,3.2078]
[1740440729346,4.993,2529.6,2529.2,3.2078]
[1740440729546,4.993,2529.6,2529.2,44.0078]
[1740440730248,8.2008,2529.5,2528.5,3.21373249]
[1740440730447,3.2078,2529.1,2528.5,3.21373249]
[1740440730641,3.2078,2529.4,2528.5,3.21373249]
[1740440731041,3.2078,2529.3,2528.5,3.21373249]
[1740440735255,3.2078,2529.0,2528.5,0.00593249]
[1740440736941,5.7857,2528.9,2528.5,0.00593249]
[1740440737148,4.99,2528.8,2528.5,0.00593249]
[1740440738948,3.2078,2528.7,2528.5,0.00593249]
[1740440739358,9.98045522,2528.7,2527.5,3.2078]
[1740440739554,3.2078,2527.8,2527.0,0.83732692]
[1740440739858,4.989,2527.7,2527.0,0.5]
[1740440740152,0.79142,2527.6,2527.0,0.5]
[1740440740456,4.989,2527.7,2527.1,0.79155]
[1740440740457,5.7804,2527.7,2527.1,0.79155]
[1740440740651,0.00593249,2527.6,2527.1,0.79155]
[1740440741157,0.00593249,2527.6,2527.2,0.79151]
[1740440741857,0.00593249,2527.6,2527.3,0.79149]
[1740440742456,0.00593249,2527.6,2527.2,0.79151]
[1740440742652,4.989,2527.5,2527.2,0.79151]
[1740440742852,4.989,2527.5,2527.0,0.84949732]
[1740440743056,4.989,2527.5,2527.2,0.79152]
[1740440743253,0.00593249,2527.6,2527.0,4.05729732]
[1740440743451,0.00593249,2527.6,2527.5,0.79143]
[1740440743651,4.988,2528.2,2527.5,0.79143]
[1740440743851,4.988,2528.2,2527.7,3.2078]
[1740440744157,2.957,2528.1,2527.8,0.79131]
[1740440744459,2.957,2528.1,2527.9,40.8]
[1740440744652,2.957,2528.1,2527.8,0.79134]
[1740440744852,2.957,2528.1,2527.4,1.97865]
[1740440745053,2.957,2528.1,2527.7,0.79136]
[1740440745350,2.957,2528.1,2527.6,0.7914]
[1740440745555,2.957,2528.1,2527.7,0.79137]
[1740440745756,3.74827,2528.1,2527.5,0.79142]
[1740440746149,6.1648,2528.1,2527.3,3.2078]
[1740440746759,4.987,2528.0,2527.4,40.8]
[1740440747361,4.987,2528.0,2527.5,1.97859]
[1740440747654,4.987,2527.9,2527.4,40.8]
[1740440748054,4.987,2527.9,2527.7,0.79134]
[1740440748762,4.987,2527.9,2527.6,3.2078]
[1740440748959,4.987,2527.9,2527.8,0.79134]
[1740440749262,7.943,2528.1,2527.6,3.2078]
[1740440749451,7.943,2528.1,2527.9,0.79131]
[1740440749651,2.957,2528.1,2528.0,0.79128]
[1740440749857,7.943,2528.1,2528.0,0.79128]
[1740440750162,7.943,2528.1,2527.9,3.2078]
[1740440751161,3.2078,2529.2,2527.9,3.2078]
[1740440751364,4.986,2529.1,2528.3,5.18574]
[1740440751657,19.88228972,2529.5,2528.6,3.2078]
[1740440751862,4.985,2529.4,2528.9,3.2078]
[1740440752061,16.67448972,2529.5,2529.4,0.79084]
[1740440753159,0.003236,2530.1,2530.0,0.79065]
[1740440753363,3.2078,2530.5,2530.4,0.79053]
[1740440753665,3.2078,2530.5,2530.1,3.2078]
[1740440753865,3.2078,2531.5,2530.8,0.79038]
[1740440754159,3.2078,2531.0,2529.8,3.2078]
[1740440754362,4.984,2531.4,2529.4,10.96496493]
[1740440754363,3.2078,2530.4,2529.5,40.8]
[1740440754561,5.77358,2530.3,2530.1,0.00593249]
[1740440754763,8.1908,2530.2,2530.1,0.00593249]
[1740440755068,4.983,2530.2,2530.1,0.00593249]
[1740440755567,5.77359,2530.2,2530.1,0.00593249]
[1740440755866,8.98139,2530.2,2530.1,0.00593249]
[1740440756359,16.16728,2530.2,2529.1,3.2078]
[1740440756562,3.99853,2529.8,2529.1,3.2078]
[1740440756759,3.2078,2529.8,2529.1,3.99873]
[1740440756958,3.99853,2529.8,2529.1,3.99873]
[1740440757154,3.99853,2529.8,2529.1,3.2078]
[1740440757369,3.2078,2529.8,2529.1,3.2078]
[1740440757567,0.79669249,2529.7,2529.2,0.00593249]
[1740440758169,0.00593249,2529.7,2529.2,0.00593249]
[1740440758468,0.00593249,2529.7,2529.4,3.2078]
[1740440758668,4.981,2530.4,2529.5,1.97699]
[1740440758968,3.2078,2530.5,2530.0,5.18443]
[1740440759165,4.98,2530.8,2530.0,1.97663]
[1740440759467,4.98,2530.8,2530.4,3.2078]
[1740440759760,4.98593249,2530.9,2530.0,5.18443]
[1740440759964,0.00593249,2530.9,2530.0,3.2078]
[1740440760166,0.00593249,2530.9,2530.3,0.79054]
[1740440760364,0.00593249,2530.9,2530.0,3.2078]
[1740440760760,0.79055,2530.4,2530.0,3.2078]
[1740440761068,3.2078,2530.6,2530.0,3.2078]
[1740440761069,4.979,2530.3,2530.0,3.2078]
[1740440761462,4.979,2530.3,2530.0,3.99843]
[1740440761664,4.979,2530.3,2530.0,3.2078]
[1740440761873,4.979,2530.3,2529.9,0.79066]
[1740440762065,4.979,2530.3,2529.5,8.8238]
[1740440762266,4.979,2530.3,2529.9,0.79067]
[1740440762466,3.2078,2530.6,2530.1,3.2078]
[1740440762666,0.00593249,2530.9,2530.8,0.7904]
[1740440763273,0.00593249,2530.9,2530.6,0.00593249]
[1740440763860,0.79043,2530.7,2530.6,0.00593249]
[1740440764169,0.79043,2530.7,2529.3,9.56072]
[1740440764170,8.2531853,2530.7,2528.8,3.2078]
[1740440764368,0.79095,2529.1,2528.6,5.9807]
[1740440764567,4.977,2529.1,2528.6,5.9807]
[1740440764768,4.977,2529.1,2528.2,3.2078]
[1740440764769,3.2078,2528.9,2528.2,3.2078]
[1740440764965,3.2078,2528.9,2528.1,0.79122]
[1740440764966,0.79104,2528.8,2528.1,0.79122]
[1740440765273,0.79111,2528.6,2528.3,0.00593249]
[1740440765473,0.00593249,2528.8,2528.3,0.00593249]
[1740440765667,3.9989,2528.6,2528.3,0.00593249]
[1740440766462,3.2078,2528.6,2528.3,0.00593249]
[1740440766665,0.79115,2528.5,2528.3,0.00593249]
[1740440766867,4.976,2528.4,2528.3,0.00593249]
[1740440768870,4.976,2528.4,2528.3,0.79711249]
[1740440769072,4.976,2528.4,2528.3,0.00593249]
[1740440770475,4.976,2528.4,2528.3,0.79711249]
[1740440771178,4.976,2528.4,2528.3,0.00593249]
[1740440771780,4.974,2528.7,2528.3,0.00593249]
[1740440772576,4.974,2528.7,2528.3,0.79709249]
[1740440773178,4.974,2528.7,2528.4,0.79115]
[1740440774375,0.00593249,2528.8,2528.7,0.79106]
[1740440774577,4.97993249,2528.8,2528.7,0.79106]
[1740440774779,4.97993249,2528.8,2528.3,0.00593249]
[1740440774976,4.97993249,2528.8,2528.7,40.8]
[1740440775373,4.97993249,2528.8,2528.5,0.7911]
[1740440775578,4.97993249,2528.8,2528.6,0.79109]
[1740440775777,4.97993249,2528.8,2528.5,0.79111]
[1740440775978,5.76997249,2528.8,2528.3,0.79711249]
[1740440776178,4.97893249,2528.8,2528.3,0.00593249]
[1740440776381,0.79107,2528.7,2528.3,0.00593249]
[1740440776587,3.2078,2528.6,2528.3,0.00593249]
[1740440778591,0.79113,2528.5,2528.3,0.00593249]
[1740440778780,3.2078,2528.6,2528.3,0.00593249]
[1740440778981,9.2078,2528.6,2527.5,3.2078]
[1740440779184,3.2078,2528.1,2527.5,3.2078]
[1740440779382,4.972,2528.0,2527.5,3.2078]
[1740440779579,3.2078,2527.8,2527.2,49.8807]
[1740440780177,3.2078,2527.8,2527.2,49.88663249]
[1740440780582,3.2078,2527.8,2527.2,9.08663249]
[1740440780777,3.2078,2527.5,2527.2,0.00593249]
[1740440781281,0.79156,2527.1,2526.5,3.2078]
[1740440781486,8.97036,2527.1,2526.5,3.99954]
[1740440781679,8.97036,2527.1,2526.5,3.2078]
[1740440782586,8.97036,2527.1,2526.8,0.00593249]
[1740440782780,14.1788,2527.1,2526.2,3.55318653]
[1740440782979,14.1788,2527.1,2524.0,7.836]
[1740440782980,3.99957,2526.5,2525.9,0.79192]
[1740440783179,4.971,2526.4,2525.9,0.79192]
[1740440783583,4.971,2526.4,2525.9,0.33856383]
[1740440783883,4.971,2526.4,2525.9,0.79191]
[1740440784079,4.971,2526.4,2525.9,0.79784249]
[1740440784279,4.971,2526.4,2525.9,0.79785249]
[1740440784790,4.971,2526.4,2525.9,0.79786249]
[1740440784991,5.76278,2526.4,2525.9,0.00593249]
[1740440785184,4.971,2526.4,2526.0,3.2078]
[1740440785384,4.971,2526.4,2526.3,0.79181]
[1740440785585,4.971,2526.4,2526.0,3.2078]
[1740440785885,4.971,2526.4,2525.9,2.33050618]
[1740440786082,4.971,2526.4,2526.3,0.79181]
[1740440786792,4.971,2526.4,2526.2,3.2078]
[1740440786793,3.2078,2527.1,2526.2,3.2078]
[1740440786989,4.97,2527.0,2526.7,0.79165]
[1740440787293,4.97,2527.0,2526.9,0.79162]
[1740440787890,4.97,2527.0,2526.9,41.59162]
[1740440788088,4.97,2527.0,2526.9,40.8]
[1740440788490,4.97,2527.0,2526.9,0.79162]
[1740440788892,4.97,2527.0,2526.9,41.59162]
[1740440790586,0.00593249,2527.3,2526.8,3.2078]
[1740440790793,0.00593249,2527.3,2527.2,3.99933]
[1740440794199,0.00593249,2527.3,2527.2,3.2078]
[1740440795391,0.00593249,2527.3,2526.5,3.2078]
[1740440795597,3.21373249,2527.3,2526.5,3.2078]